[Event "December 12 Late 2023"]
[Site "https://www.chess.com"]
[Date "2023.12.12"]
[Round "7"]
[White "Sarkar, Justin"]
[Black "Herman, Matthew"]
[Result "0-1"]
[Board "92"]
[TimeControl "180+1"]
[WhiteFideId "2010011"]
[BlackFideId "2028964"]
[WhiteElo "2300"]
[BlackElo "2490"]
[WhiteTeam "USA"]
[BlackTeam "USA"]
[WhiteClock "0:00:00"]
[BlackClock "0:00:11"]

1. d4 {[%clk 0:03:00]}  Nf6 {[%clk 0:02:59]} 2. c4 {[%clk 0:02:59]}  g6 {[%clk 0:03:00]} 3. Nc3 {[%clk 0:02:58]}  Bg7 {[%clk 0:03:00]} 4. e4 {[%clk 0:02:56]}  d6 {[%clk 0:03:01]} 5. Nf3 {[%clk 0:02:47]}  O-O {[%clk 0:03:01]} 6. Be2 {[%clk 0:02:47]}  Nbd7 {[%clk 0:03:01]} 7. O-O {[%clk 0:02:43]}  e5 {[%clk 0:03:01]} 8. Re1 {[%clk 0:02:42]}  h6 {[%clk 0:03:01]} 9. Bf1 {[%clk 0:02:39]}  Nh7 {[%clk 0:03:01]} 10. g3 {[%clk 0:02:23]}  Ng5 {[%clk 0:03:00]} 11. Nxg5 {[%clk 0:02:18]}  exd4 {[%clk 0:02:59]} 12. Nb5 {[%clk 0:01:32]}  hxg5 {[%clk 0:02:51]} 13. Nxd4 {[%clk 0:01:32]}  Ne5 {[%clk 0:02:45]} 14. f3 {[%clk 0:01:19]}  c5 {[%clk 0:02:29]} 15. Nb5 {[%clk 0:01:12]}  g4 {[%clk 0:02:29]} 16. fxg4 {[%clk 0:01:11]}  Bxg4 {[%clk 0:02:28]} 17. Be2 {[%clk 0:01:11]}  Bxe2 {[%clk 0:02:24]} 18. Qxe2 {[%clk 0:01:08]}  Qe7 {[%clk 0:01:54]} 19. Nc3 {[%clk 0:00:55]}  Qe6 {[%clk 0:01:52]} 20. Nd5 {[%clk 0:00:53]}  Rac8 {[%clk 0:01:49]} 21. Bg5 {[%clk 0:00:48]}  Rfe8 {[%clk 0:01:39]} 22. Rf1 {[%clk 0:00:43]}  Nd7 {[%clk 0:01:39]} 23. Rae1 {[%clk 0:00:38]}  Bd4+ {[%clk 0:01:36]} 24. Kg2 {[%clk 0:00:35]}  f5 {[%clk 0:01:17]} 25. Nf4 {[%clk 0:00:15]}  Qf7 {[%clk 0:00:50]} 26. Qc2 {[%clk 0:00:15]}  Nb6 {[%clk 0:00:37]} 27. b3 {[%clk 0:00:10]}  Re5 {[%clk 0:00:32]} 28. exf5 {[%clk 0:00:09]}  gxf5 {[%clk 0:00:29]} 29. h4 {[%clk 0:00:04]}  Rce8 {[%clk 0:00:28]} 30. Rxe5 {[%clk 0:00:04]}  dxe5 {[%clk 0:00:29]} 31. Nd3 {[%clk 0:00:02]}  e4 {[%clk 0:00:27]} 32. Nf4 {[%clk 0:00:02]}  Kh7 {[%clk 0:00:15]} 33. Qe2 {[%clk 0:00:02]}  Nd7 {[%clk 0:00:14]} 34. g4 {[%clk 0:00:02]}  Ne5 {[%clk 0:00:11]} 35. gxf5 {[%clk 0:00:02]}  Nf3 {[%clk 0:00:12]} 36. Rg1 {[%clk 0:00:00]}  Bxg1 {[%clk 0:00:11]} 0-1

[Event "December 12 Late 2023"]
[Site "https://www.chess.com"]
[Date "2023.12.12"]
[Round "7"]
[White "Garcia Almaguer, Juan Manuel"]
[Black "Shapiro, Daniel"]
[Result "1-0"]
[Board "93"]
[TimeControl "180+1"]
[WhiteFideId "5110491"]
[BlackFideId "2001780"]
[WhiteElo "2479"]
[BlackElo "2307"]
[WhiteTeam "MEX"]
[BlackTeam "USA"]
[WhiteClock "0:00:20"]
[BlackClock "0:00:00"]

1. e4 {[%clk 0:03:00]}  c5 {[%clk 0:02:58]} 2. Nf3 {[%clk 0:02:59]}  Nc6 {[%clk 0:02:58]} 3. d4 {[%clk 0:02:56]}  cxd4 {[%clk 0:02:58]} 4. Nxd4 {[%clk 0:02:57]}  Nf6 {[%clk 0:02:58]} 5. Nc3 {[%clk 0:02:55]}  d6 {[%clk 0:02:58]} 6. Be2 {[%clk 0:02:54]}  e6 {[%clk 0:02:56]} 7. Be3 {[%clk 0:02:53]}  a6 {[%clk 0:02:56]} 8. a4 {[%clk 0:02:53]}  Qc7 {[%clk 0:02:51]} 9. O-O {[%clk 0:02:50]}  Bd7 {[%clk 0:02:45]} 10. f4 {[%clk 0:02:46]}  b6 {[%clk 0:02:38]} 11. Bf3 {[%clk 0:02:41]}  Rb8 {[%clk 0:02:37]} 12. Nb3 {[%clk 0:02:37]}  Be7 {[%clk 0:02:34]} 13. Kh1 {[%clk 0:02:33]}  Bc8 {[%clk 0:02:34]} 14. Qe2 {[%clk 0:02:30]}  Bb7 {[%clk 0:02:31]} 15. Qc4 {[%clk 0:02:30]}  Rc8 {[%clk 0:02:10]} 16. a5 {[%clk 0:02:20]}  b5 {[%clk 0:01:55]} 17. Qe2 {[%clk 0:02:18]}  O-O {[%clk 0:01:50]} 18. Bb6 {[%clk 0:02:16]}  Qb8 {[%clk 0:01:50]} 19. g4 {[%clk 0:01:52]}  Rfe8 {[%clk 0:01:44]} 20. Qg2 {[%clk 0:01:46]}  Nb4 {[%clk 0:01:35]} 21. g5 {[%clk 0:01:33]}  Nd7 {[%clk 0:01:31]} 22. Be3 {[%clk 0:01:25]}  Bf8 {[%clk 0:01:29]} 23. h4 {[%clk 0:01:22]}  g6 {[%clk 0:01:24]} 24. h5 {[%clk 0:01:21]}  Bg7 {[%clk 0:01:24]} 25. Rad1 {[%clk 0:01:14]}  Nxc2 {[%clk 0:01:17]} 26. Qxc2 {[%clk 0:01:09]}  b4 {[%clk 0:01:18]} 27. hxg6 {[%clk 0:01:00]}  hxg6 {[%clk 0:01:16]} 28. f5 {[%clk 0:00:49]}  exf5 {[%clk 0:01:00]} 29. Bf4 {[%clk 0:00:42]}  Ne5 {[%clk 0:00:51]} 30. Bxe5 {[%clk 0:00:38]}  Bxe5 {[%clk 0:00:50]} 31. exf5 {[%clk 0:00:38]}  Bxf3+ {[%clk 0:00:42]} 32. Rxf3 {[%clk 0:00:39]}  Qb7 {[%clk 0:00:38]} 33. Qe4 {[%clk 0:00:39]}  Qxe4 {[%clk 0:00:14]} 34. Nxe4 {[%clk 0:00:39]}  Rc4 {[%clk 0:00:13]} 35. fxg6 {[%clk 0:00:25]}  fxg6 {[%clk 0:00:13]} 36. Nf6+ {[%clk 0:00:24]}  Bxf6 {[%clk 0:00:13]} 37. Rxf6 {[%clk 0:00:23]}  Rh4+ {[%clk 0:00:12]} 38. Kg2 {[%clk 0:00:21]}  Rg4+ {[%clk 0:00:13]} 39. Kf3 {[%clk 0:00:22]}  Rxg5 {[%clk 0:00:13]} 40. Nd4 {[%clk 0:00:20]}  Rd5 {[%clk 0:00:12]} 41. Rxg6+ {[%clk 0:00:20]}  Kf7 {[%clk 0:00:13]} 42. Rg4 {[%clk 0:00:20]}  Rh8 {[%clk 0:00:11]} 43. Rc1 {[%clk 0:00:19]}  Rh3+ {[%clk 0:00:10]} 44. Ke4 {[%clk 0:00:20]}  Rh2 {[%clk 0:00:00]} 45. Kxd5 {[%clk 0:00:20]} 1-0

[Event "December 12 Late 2023"]
[Site "https://www.chess.com"]
[Date "2023.12.12"]
[Round "7"]
[White "Osmonbekov, Talaibek"]
[Black "Dmitrenko, Viktor"]
[Result "0-1"]
[Board "94"]
[TimeControl "180+1"]
[WhiteFideId "2017253"]
[BlackFideId "14110270"]
[WhiteElo "2282"]
[BlackElo "2453"]
[WhiteTeam "USA"]
[BlackTeam "UKR"]
[WhiteClock "0:00:00"]
[BlackClock "0:00:40"]

1. d4 {[%clk 0:03:00]}  e6 {[%clk 0:02:59]} 2. Nc3 {[%clk 0:03:01]}  d5 {[%clk 0:02:58]} 3. Bf4 {[%clk 0:03:02]}  a6 {[%clk 0:02:56]} 4. e3 {[%clk 0:03:02]}  Nf6 {[%clk 0:02:54]} 5. Nf3 {[%clk 0:03:02]}  h6 {[%clk 0:02:53]} 6. Ne5 {[%clk 0:03:01]}  c5 {[%clk 0:02:49]} 7. Be2 {[%clk 0:02:55]}  cxd4 {[%clk 0:02:47]} 8. exd4 {[%clk 0:02:54]}  Nc6 {[%clk 0:02:48]} 9. O-O {[%clk 0:02:46]}  Bb4 {[%clk 0:02:47]} 10. Bh5 {[%clk 0:02:29]}  O-O {[%clk 0:02:39]} 11. Rb1 {[%clk 0:02:23]}  Nxd4 {[%clk 0:02:09]} 12. Bxf7+ {[%clk 0:02:18]}  Rxf7 {[%clk 0:02:05]} 13. Nxf7 {[%clk 0:02:16]}  Kxf7 {[%clk 0:02:03]} 14. Qxd4 {[%clk 0:02:17]}  Be7 {[%clk 0:02:01]} 15. Na4 {[%clk 0:02:01]}  Qa5 {[%clk 0:01:49]} 16. Nb6 {[%clk 0:01:35]}  Bc5 {[%clk 0:01:47]} 17. b4 {[%clk 0:01:35]}  Bxb6 {[%clk 0:01:43]} 18. Qc3 {[%clk 0:01:16]}  Qb5 {[%clk 0:01:39]} 19. Be3 {[%clk 0:00:55]}  Bxe3 {[%clk 0:01:29]} 20. fxe3 {[%clk 0:00:56]}  Bd7 {[%clk 0:01:26]} 21. Rxf6+ {[%clk 0:00:53]}  gxf6 {[%clk 0:01:24]} 22. Rf1 {[%clk 0:00:54]}  d4 {[%clk 0:01:18]} 23. Qxd4 {[%clk 0:00:51]}  e5 {[%clk 0:01:17]} 24. Qh4 {[%clk 0:00:46]}  Qc6 {[%clk 0:01:13]} 25. Qxh6 {[%clk 0:00:44]}  Rg8 {[%clk 0:01:11]} 26. Qh5+ {[%clk 0:00:30]}  Rg6 {[%clk 0:01:09]} 27. Qh7+ {[%clk 0:00:24]}  Rg7 {[%clk 0:01:08]} 28. Qh5+ {[%clk 0:00:24]}  Kg8 {[%clk 0:01:05]} 29. Rf2 {[%clk 0:00:20]}  Qe4 {[%clk 0:00:59]} 30. Qh6 {[%clk 0:00:15]}  Rg6 {[%clk 0:00:52]} 31. Qh5 {[%clk 0:00:11]}  Bc6 {[%clk 0:00:49]} 32. Qh3 {[%clk 0:00:04]}  Qg4 {[%clk 0:00:42]} 33. Qxg4 {[%clk 0:00:01]}  Rxg4 {[%clk 0:00:42]} 34. g3 {[%clk 0:00:02]}  Kg7 {[%clk 0:00:40]} 35. Kf1 {[%clk 0:00:00]}  Rxb4 {[%clk 0:00:40]} 0-1

[Event "December 12 Late 2023"]
[Site "https://www.chess.com"]
[Date "2023.12.12"]
[Round "7"]
[White "Rogov, Matfey"]
[Black "Biliy, Vadim"]
[Result "1-0"]
[Board "96"]
[TimeControl "180+1"]
[WhiteFideId "44191308"]
[BlackFideId "14114127"]
[WhiteElo "2500"]
[BlackElo "2283"]
[WhiteTeam "RUS"]
[BlackTeam "UKR"]
[WhiteClock "0:01:40"]
[BlackClock "0:00:29"]

1. e4 {[%clk 0:03:00]}  d6 {[%clk 0:02:54]} 2. d4 {[%clk 0:03:00]}  Nf6 {[%clk 0:02:54]} 3. Nc3 {[%clk 0:03:00]}  g6 {[%clk 0:02:53]} 4. Bf4 {[%clk 0:02:59]}  c6 {[%clk 0:02:47]} 5. Qd2 {[%clk 0:02:58]}  b5 {[%clk 0:02:48]} 6. e5 {[%clk 0:02:54]}  b4 {[%clk 0:02:47]} 7. exf6 {[%clk 0:02:53]}  bxc3 {[%clk 0:02:47]} 8. Qxc3 {[%clk 0:02:54]}  exf6 {[%clk 0:02:40]} 9. d5 {[%clk 0:02:54]}  Bd7 {[%clk 0:02:32]} 10. O-O-O {[%clk 0:02:50]}  Be7 {[%clk 0:02:30]} 11. Bc4 {[%clk 0:02:13]}  O-O {[%clk 0:02:08]} 12. h4 {[%clk 0:02:11]}  cxd5 {[%clk 0:01:39]} 13. Bxd5 {[%clk 0:02:11]}  Nc6 {[%clk 0:01:39]} 14. h5 {[%clk 0:01:53]}  Rc8 {[%clk 0:01:37]} 15. hxg6 {[%clk 0:01:48]}  hxg6 {[%clk 0:01:18]} 16. Qg3 {[%clk 0:01:47]}  Kg7 {[%clk 0:00:29]} 17. Bh6+ {[%clk 0:01:40]} 1-0

[Event "December 12 Late 2023"]
[Site "https://www.chess.com"]
[Date "2023.12.12"]
[Round "7"]
[White "Kraiouchkine, Nikita"]
[Black "Mejia, Cherry Ann"]
[Result "1/2-1/2"]
[Board "97"]
[TimeControl "180+1"]
[WhiteFideId "2607140"]
[BlackFideId "5206880"]
[WhiteElo "2465"]
[BlackElo "2280"]
[WhiteTeam "CAN"]
[BlackTeam "PHI"]
[WhiteClock "0:00:04"]
[BlackClock "0:00:04"]

1. e4 {[%clk 0:02:55]}  c5 {[%clk 0:02:59]} 2. Nf3 {[%clk 0:02:54]}  Nc6 {[%clk 0:02:59]} 3. d4 {[%clk 0:02:54]}  cxd4 {[%clk 0:02:59]} 4. Nxd4 {[%clk 0:02:54]}  Qb6 {[%clk 0:02:58]} 5. Nb3 {[%clk 0:02:53]}  Nf6 {[%clk 0:02:55]} 6. Bd3 {[%clk 0:02:44]}  e6 {[%clk 0:02:51]} 7. Be3 {[%clk 0:02:43]}  Qc7 {[%clk 0:02:46]} 8. c4 {[%clk 0:02:38]}  d5 {[%clk 0:02:41]} 9. cxd5 {[%clk 0:02:25]}  exd5 {[%clk 0:02:41]} 10. Nc3 {[%clk 0:02:26]}  dxe4 {[%clk 0:02:24]} 11. Nxe4 {[%clk 0:02:20]}  Bb4+ {[%clk 0:02:21]} 12. Nc3 {[%clk 0:02:01]}  O-O {[%clk 0:02:15]} 13. O-O {[%clk 0:02:01]}  Bxc3 {[%clk 0:02:06]} 14. bxc3 {[%clk 0:01:59]}  Ng4 {[%clk 0:02:05]} 15. g3 {[%clk 0:01:43]}  Qe5 {[%clk 0:01:57]} 16. Bd4 {[%clk 0:01:08]}  Qd5 {[%clk 0:01:19]} 17. f3 {[%clk 0:00:34]}  Nge5 {[%clk 0:01:03]} 18. Be4 {[%clk 0:00:32]}  Qe6 {[%clk 0:01:00]} 19. Nc5 {[%clk 0:00:29]}  Qd6 {[%clk 0:00:54]} 20. Bf2 {[%clk 0:00:20]}  Qf6 {[%clk 0:00:48]} 21. f4 {[%clk 0:00:19]}  Bg4 {[%clk 0:00:47]} 22. fxe5 {[%clk 0:00:15]}  Nxe5 {[%clk 0:00:45]} 23. Qc2 {[%clk 0:00:12]}  Nf3+ {[%clk 0:00:32]} 24. Kg2 {[%clk 0:00:12]}  Ng5 {[%clk 0:00:21]} 25. Bd4 {[%clk 0:00:08]}  Qh6 {[%clk 0:00:21]} 26. h4 {[%clk 0:00:05]}  Bh3+ {[%clk 0:00:21]} 27. Kh2 {[%clk 0:00:06]}  Nxe4 {[%clk 0:00:21]} 28. Qxe4 {[%clk 0:00:03]}  Bxf1 {[%clk 0:00:21]} 29. Rxf1 {[%clk 0:00:04]}  Rae8 {[%clk 0:00:21]} 30. Qxb7 {[%clk 0:00:04]}  Re2+ {[%clk 0:00:21]} 31. Rf2 {[%clk 0:00:04]}  Qd2 {[%clk 0:00:19]} 32. Qf3 {[%clk 0:00:04]}  Rxf2+ {[%clk 0:00:14]} 33. Qxf2 {[%clk 0:00:04]}  Qd1 {[%clk 0:00:13]} 34. Nd7 {[%clk 0:00:03]}  Re8 {[%clk 0:00:13]} 35. Ne5 {[%clk 0:00:03]}  f6 {[%clk 0:00:14]} 36. Qf3 {[%clk 0:00:02]}  Qc2+ {[%clk 0:00:13]} 37. Kh3 {[%clk 0:00:01]}  fxe5 {[%clk 0:00:13]} 38. Qd5+ {[%clk 0:00:02]}  Kh8 {[%clk 0:00:12]} 39. Qf7 {[%clk 0:00:03]}  Rg8 {[%clk 0:00:12]} 40. Bxe5 {[%clk 0:00:03]}  Qg6 {[%clk 0:00:11]} 41. Qe7 {[%clk 0:00:03]}  Qf5+ {[%clk 0:00:11]} 42. Kg2 {[%clk 0:00:03]}  h6 {[%clk 0:00:11]} 43. Qd6 {[%clk 0:00:02]}  Kh7 {[%clk 0:00:11]} 44. Bd4 {[%clk 0:00:02]}  Qc2+ {[%clk 0:00:10]} 45. Kh3 {[%clk 0:00:02]}  Qxa2 {[%clk 0:00:11]} 46. Qd7 {[%clk 0:00:03]}  Qc2 {[%clk 0:00:09]} 47. Qc7 {[%clk 0:00:02]}  a6 {[%clk 0:00:08]} 48. Qd6 {[%clk 0:00:02]}  Qf5+ {[%clk 0:00:08]} 49. Kg2 {[%clk 0:00:02]}  Re8 {[%clk 0:00:08]} 50. Qxa6 {[%clk 0:00:01]}  Qe4+ {[%clk 0:00:07]} 51. Kh3 {[%clk 0:00:01]}  Qf5+ {[%clk 0:00:07]} 52. Kg2 {[%clk 0:00:02]}  Rf8 {[%clk 0:00:06]} 53. Qa7 {[%clk 0:00:02]}  Qf3+ {[%clk 0:00:06]} 54. Kh3 {[%clk 0:00:02]}  Qf1+ {[%clk 0:00:06]} 55. Kg4 {[%clk 0:00:02]}  Qe2+ {[%clk 0:00:06]} 56. Kh3 {[%clk 0:00:03]}  Qf1+ {[%clk 0:00:07]} 57. Kh2 {[%clk 0:00:03]}  Qe2+ {[%clk 0:00:05]} 58. Kh3 {[%clk 0:00:04]}  Qf1+ {[%clk 0:00:04]} 1/2-1/2

[Event "December 12 Late 2023"]
[Site "https://www.chess.com"]
[Date "2023.12.12"]
[Round "7"]
[White "Lopusiewicz, Piotr"]
[Black "Erece, Ece Alkim"]
[Result "1-0"]
[Board "102"]
[TimeControl "180+1"]
[WhiteFideId "1116029"]
[BlackFideId "6346006"]
[WhiteElo "2432"]
[BlackElo "2254"]
[WhiteTeam "POL"]
[BlackTeam "TUR"]
[WhiteClock "0:00:12"]
[BlackClock "0:00:00"]

1. d4 {[%clk 0:03:00]}  d5 {[%clk 0:02:56]} 2. c4 {[%clk 0:03:01]}  c6 {[%clk 0:02:55]} 3. Nf3 {[%clk 0:03:01]}  Nf6 {[%clk 0:02:55]} 4. cxd5 {[%clk 0:03:01]}  cxd5 {[%clk 0:02:55]} 5. Nc3 {[%clk 0:03:02]}  Nc6 {[%clk 0:02:56]} 6. Bf4 {[%clk 0:03:02]}  Bf5 {[%clk 0:02:56]} 7. Qb3 {[%clk 0:03:02]}  Qb6 {[%clk 0:02:55]} 8. Qxb6 {[%clk 0:03:02]}  axb6 {[%clk 0:02:55]} 9. a3 {[%clk 0:03:03]}  e6 {[%clk 0:02:55]} 10. Rc1 {[%clk 0:03:03]}  Be7 {[%clk 0:02:30]} 11. e3 {[%clk 0:03:00]}  h6 {[%clk 0:02:29]} 12. Nb5 {[%clk 0:02:38]}  O-O {[%clk 0:02:19]} 13. h3 {[%clk 0:02:32]}  Ne4 {[%clk 0:02:01]} 14. Be2 {[%clk 0:02:13]}  Na5 {[%clk 0:01:38]} 15. Bd3 {[%clk 0:01:22]}  Rac8 {[%clk 0:00:55]} 16. Ke2 {[%clk 0:01:14]}  Nb3 {[%clk 0:00:53]} 17. Rcd1 {[%clk 0:01:11]}  Nf6 {[%clk 0:00:26]} 18. Nd2 {[%clk 0:00:30]}  Nxd2 {[%clk 0:00:13]} 19. Rxd2 {[%clk 0:00:31]}  Bxd3+ {[%clk 0:00:11]} 20. Kxd3 {[%clk 0:00:31]}  Ne4 {[%clk 0:00:11]} 21. f3 {[%clk 0:00:28]}  Nxd2 {[%clk 0:00:10]} 22. Kxd2 {[%clk 0:00:28]}  Rc6 {[%clk 0:00:10]} 23. Kd3 {[%clk 0:00:23]}  Rc4 {[%clk 0:00:10]} 24. Nc3 {[%clk 0:00:19]}  Rfc8 {[%clk 0:00:10]} 25. g4 {[%clk 0:00:18]}  Bxa3 {[%clk 0:00:09]} 26. Nd1 {[%clk 0:00:16]}  Bb4 {[%clk 0:00:07]} 27. e4 {[%clk 0:00:16]}  Rc2 {[%clk 0:00:00]} 28. Rf1 {[%clk 0:00:12]} 1-0

[Event "December 12 Late 2023"]
[Site "https://www.chess.com"]
[Date "2023.12.12"]
[Round "7"]
[White "Buchenau, Frank"]
[Black "De Lima, Valdenicio Marcelino"]
[Result "1-0"]
[Board "103"]
[TimeControl "180+1"]
[WhiteFideId "4604350"]
[BlackFideId "2132044"]
[WhiteElo "2416"]
[BlackElo "2245"]
[WhiteTeam "GER"]
[BlackTeam "BRA"]
[WhiteClock "0:00:34"]
[BlackClock "0:00:57"]

1. e4 {[%clk 0:03:00]}  c5 {[%clk 0:03:00]} 2. Nf3 {[%clk 0:02:59]}  Nc6 {[%clk 0:03:00]} 3. Bb5 {[%clk 0:02:59]}  g6 {[%clk 0:03:00]} 4. Bxc6 {[%clk 0:02:58]}  dxc6 {[%clk 0:03:00]} 5. d3 {[%clk 0:02:58]}  Bg7 {[%clk 0:03:00]} 6. O-O {[%clk 0:02:58]}  e5 {[%clk 0:03:00]} 7. Be3 {[%clk 0:02:54]}  b6 {[%clk 0:03:00]} 8. a4 {[%clk 0:02:30]}  h6 {[%clk 0:02:55]} 9. a5 {[%clk 0:02:26]}  Be6 {[%clk 0:02:55]} 10. Nc3 {[%clk 0:02:12]}  Ne7 {[%clk 0:02:54]} 11. Qd2 {[%clk 0:02:09]}  f5 {[%clk 0:02:53]} 12. exf5 {[%clk 0:02:06]}  gxf5 {[%clk 0:02:54]} 13. Qc1 {[%clk 0:01:51]}  Ng6 {[%clk 0:02:41]} 14. Re1 {[%clk 0:01:49]}  Kf7 {[%clk 0:02:25]} 15. Ra3 {[%clk 0:01:26]}  f4 {[%clk 0:02:13]} 16. Bd2 {[%clk 0:01:25]}  b5 {[%clk 0:02:14]} 17. Ne4 {[%clk 0:01:20]}  b4 {[%clk 0:02:07]} 18. Ra1 {[%clk 0:01:19]}  Qe7 {[%clk 0:02:00]} 19. c3 {[%clk 0:01:16]}  Rac8 {[%clk 0:01:46]} 20. cxb4 {[%clk 0:01:12]}  cxb4 {[%clk 0:01:46]} 21. d4 {[%clk 0:01:09]}  Bg4 {[%clk 0:01:39]} 22. Qc4+ {[%clk 0:00:58]}  Be6 {[%clk 0:01:37]} 23. Qxb4 {[%clk 0:00:54]}  Qxb4 {[%clk 0:01:27]} 24. Bxb4 {[%clk 0:00:53]}  Rb8 {[%clk 0:01:27]} 25. Nd6+ {[%clk 0:00:39]}  Kg8 {[%clk 0:01:19]} 26. Bc5 {[%clk 0:00:37]}  exd4 {[%clk 0:01:07]} 27. Rxe6 {[%clk 0:00:35]}  Rxb2 {[%clk 0:01:02]} 28. Rxg6 {[%clk 0:00:34]}  Kh7 {[%clk 0:01:02]} 29. Rxg7+ {[%clk 0:00:34]}  Kxg7 {[%clk 0:00:57]} 30. Bxd4+ {[%clk 0:00:34]} 1-0

[Event "December 12 Late 2023"]
[Site "https://www.chess.com"]
[Date "2023.12.12"]
[Round "7"]
[White "Marchesich, Giovanni"]
[Black "Bullen, Alex"]
[Result "1-0"]
[Board "105"]
[TimeControl "180+1"]
[WhiteFideId "2824790"]
[BlackFideId "1801627"]
[WhiteElo "2397"]
[BlackElo "2216"]
[WhiteTeam "ITA"]
[BlackTeam "WLS"]
[WhiteClock "0:01:30"]
[BlackClock "0:00:17"]

1. d4 {[%clk 0:03:00]}  d5 {[%clk 0:02:59]} 2. Bg5 {[%clk 0:03:00]}  h6 {[%clk 0:02:58]} 3. Bh4 {[%clk 0:03:00]}  c6 {[%clk 0:02:59]} 4. e3 {[%clk 0:02:59]}  Qb6 {[%clk 0:02:58]} 5. Qc1 {[%clk 0:02:52]}  e5 {[%clk 0:02:57]} 6. c3 {[%clk 0:02:47]}  exd4 {[%clk 0:02:55]} 7. exd4 {[%clk 0:02:47]}  Bf5 {[%clk 0:02:55]} 8. Nf3 {[%clk 0:02:46]}  Be7 {[%clk 0:02:54]} 9. Bxe7 {[%clk 0:02:45]}  Nxe7 {[%clk 0:02:55]} 10. Be2 {[%clk 0:02:44]}  Nd7 {[%clk 0:02:54]} 11. O-O {[%clk 0:02:45]}  Nf6 {[%clk 0:02:53]} 12. Nbd2 {[%clk 0:02:44]}  O-O {[%clk 0:02:52]} 13. Ne5 {[%clk 0:02:41]}  Ng6 {[%clk 0:02:48]} 14. Ndf3 {[%clk 0:02:40]}  Nxe5 {[%clk 0:02:44]} 15. Nxe5 {[%clk 0:02:39]}  Nd7 {[%clk 0:02:43]} 16. Qf4 {[%clk 0:02:37]}  Nxe5 {[%clk 0:02:24]} 17. Qxf5 {[%clk 0:02:35]}  Ng6 {[%clk 0:02:24]} 18. b3 {[%clk 0:02:31]}  Rae8 {[%clk 0:02:16]} 19. Bd3 {[%clk 0:02:31]}  Qd8 {[%clk 0:02:14]} 20. Rae1 {[%clk 0:02:30]}  Qh4 {[%clk 0:01:56]} 21. g3 {[%clk 0:02:24]}  Qd8 {[%clk 0:01:45]} 22. h4 {[%clk 0:02:21]}  Qc8 {[%clk 0:01:35]} 23. Qxc8 {[%clk 0:02:15]}  Rxc8 {[%clk 0:01:34]} 24. h5 {[%clk 0:02:16]}  Nh8 {[%clk 0:01:29]} 25. Re7 {[%clk 0:02:16]}  Rb8 {[%clk 0:01:26]} 26. Rfe1 {[%clk 0:02:16]}  g6 {[%clk 0:01:10]} 27. g4 {[%clk 0:02:07]}  Kg7 {[%clk 0:01:09]} 28. Kh2 {[%clk 0:02:06]}  Kf6 {[%clk 0:01:07]} 29. f4 {[%clk 0:02:03]}  Rfd8 {[%clk 0:00:56]} 30. hxg6 {[%clk 0:01:58]}  Nxg6 {[%clk 0:00:51]} 31. Bxg6 {[%clk 0:01:54]}  Kxg6 {[%clk 0:00:47]} 32. Rc7 {[%clk 0:01:54]}  Re8 {[%clk 0:00:36]} 33. Rxe8 {[%clk 0:01:51]}  Rxe8 {[%clk 0:00:37]} 34. Rxb7 {[%clk 0:01:52]}  Re2+ {[%clk 0:00:37]} 35. Kg3 {[%clk 0:01:52]}  Rxa2 {[%clk 0:00:37]} 36. Rc7 {[%clk 0:01:52]}  Ra3 {[%clk 0:00:27]} 37. Rxc6+ {[%clk 0:01:51]}  f6 {[%clk 0:00:25]} 38. b4 {[%clk 0:01:51]}  a5 {[%clk 0:00:21]} 39. bxa5 {[%clk 0:01:49]}  Rxa5 {[%clk 0:00:22]} 40. Kh4 {[%clk 0:01:48]}  Ra3 {[%clk 0:00:16]} 41. g5 {[%clk 0:01:46]}  hxg5+ {[%clk 0:00:15]} 42. fxg5 {[%clk 0:01:47]}  Kf7 {[%clk 0:00:13]} 43. gxf6 {[%clk 0:01:47]}  Ra1 {[%clk 0:00:13]} 44. Kg5 {[%clk 0:01:47]}  Rg1+ {[%clk 0:00:13]} 45. Kf5 {[%clk 0:01:47]}  Rf1+ {[%clk 0:00:11]} 46. Ke5 {[%clk 0:01:47]}  Re1+ {[%clk 0:00:11]} 47. Kxd5 {[%clk 0:01:47]}  Re8 {[%clk 0:00:12]} 48. c4 {[%clk 0:01:44]}  Rd8+ {[%clk 0:00:12]} 49. Kc5 {[%clk 0:01:44]}  Ra8 {[%clk 0:00:12]} 50. d5 {[%clk 0:01:44]}  Ra5+ {[%clk 0:00:12]} 51. Kd4 {[%clk 0:01:45]}  Ra1 {[%clk 0:00:13]} 52. Rb6 {[%clk 0:01:44]}  Ra8 {[%clk 0:00:13]} 53. c5 {[%clk 0:01:44]}  Rd8 {[%clk 0:00:14]} 54. Ke5 {[%clk 0:01:43]}  Ke8 {[%clk 0:00:14]} 55. Re6+ {[%clk 0:01:43]}  Kf8 {[%clk 0:00:14]} 56. d6 {[%clk 0:01:43]}  Ra8 {[%clk 0:00:14]} 57. Kd5 {[%clk 0:01:42]}  Ra1 {[%clk 0:00:14]} 58. Re7 {[%clk 0:01:43]}  Rd1+ {[%clk 0:00:14]} 59. Kc6 {[%clk 0:01:42]}  Ra1 {[%clk 0:00:14]} 60. f7 {[%clk 0:01:43]}  Rd1 {[%clk 0:00:10]} 61. Re2 {[%clk 0:01:40]}  Rd3 {[%clk 0:00:10]} 62. d7 {[%clk 0:01:40]}  Kxf7 {[%clk 0:00:09]} 63. Kc7 {[%clk 0:01:41]}  Rc3 {[%clk 0:00:09]} 64. c6 {[%clk 0:01:41]}  Ra3 {[%clk 0:00:09]} 65. d8=N+ {[%clk 0:01:39]}  Kf8 {[%clk 0:00:08]} 66. Kd7 {[%clk 0:01:39]}  Ra7+ {[%clk 0:00:09]} 67. c7 {[%clk 0:01:40]}  Ra3 {[%clk 0:00:09]} 68. Ne6+ {[%clk 0:01:37]}  Kg8 {[%clk 0:00:08]} 69. c8=N {[%clk 0:01:35]}  Rd3+ {[%clk 0:00:09]} 70. Nd6 {[%clk 0:01:35]}  Kh7 {[%clk 0:00:08]} 71. Ke7 {[%clk 0:01:35]}  Kh6 {[%clk 0:00:08]} 72. Nf5+ {[%clk 0:01:33]}  Kg6 {[%clk 0:00:07]} 73. Nf4+ {[%clk 0:01:32]}  Kxf5 {[%clk 0:00:08]} 74. Nxd3 {[%clk 0:01:32]}  Kg4 {[%clk 0:00:09]} 75. Nc5 {[%clk 0:01:31]}  Kh3 {[%clk 0:00:10]} 76. Rb2 {[%clk 0:01:31]}  Kh4 {[%clk 0:00:10]} 77. Nb7 {[%clk 0:01:32]}  Kh3 {[%clk 0:00:11]} 78. Rb6 {[%clk 0:01:30]}  Kh4 {[%clk 0:00:12]} 79. Kf6 {[%clk 0:01:31]}  Kh5 {[%clk 0:00:13]} 80. Rb5+ {[%clk 0:01:31]}  Kh6 {[%clk 0:00:14]} 81. Rg5 {[%clk 0:01:30]}  Kh7 {[%clk 0:00:15]} 82. Rg1 {[%clk 0:01:30]}  Kh8 {[%clk 0:00:16]} 83. Kf7 {[%clk 0:01:30]}  Kh7 {[%clk 0:00:17]} 84. Rh1# {[%clk 0:01:30]} 1-0